fUST/lending_fUST_20250427
["ID","MTS","AMOUNT","RATE_DAILY","PERIOD"]
[359104792,1745709041667,-400.0,0.00016712,2]
[359104794,1745709041677,-500.0,0.00016712,2]
[359104796,1745709041686,-300.0,0.00016712,2]
[359104798,1745709041696,-400.0,0.00016712,2]
[359104800,1745709041705,-205.72113975,0.00016712,2]
[359104801,1745709041714,-400.0,0.00016712,2]
[359104804,1745709041724,-535.59,0.00016712,2]
[359104805,1745709041734,-400.0,0.00016712,2]
[359104807,1745709041743,-569.12,0.00016712,2]
[359104809,1745709041753,-400.0,0.00016712,2]
[359104811,1745709041763,-431.4107641,0.00016712,2]
[359104813,1745709041772,-517.5,0.00016712,2]
[359104815,1745709041781,-400.0,0.00016712,2]
[359104817,1745709041791,-400.0,0.00016712,2]
[359104819,1745709041800,-500.0,0.00016712,2]
[359104821,1745709041810,-400.0,0.00016712,2]
[359104823,1745709041819,-400.0,0.00016712,2]
[359104825,1745709041829,-400.0,0.00016712,2]
[359104827,1745709041838,-300.0,0.00016712,2]
[359104829,1745709041848,-269.89,0.00016712,2]
[359104831,1745709041857,-186.06041212,0.00016712,2]
[359104833,1745709041867,-300.0,0.00016712,2]
[359104835,1745709041876,-400.0,0.00016712,2]
[359104836,1745709041886,-1294.84,0.00016712,2]
[359104838,1745709041895,-400.0,0.00016712,2]
[359104840,1745709041905,-753.12,0.00016712,2]
[359104842,1745709041914,-400.0,0.00016712,2]
[359104844,1745709041924,-400.0,0.00016712,2]
[359104846,1745709041933,-400.0,0.00016712,2]
[359104849,1745709041944,-1032.91,0.00016712,2]
[359104851,1745709041953,-400.0,0.00016712,2]
[359104852,1745709041962,-400.0,0.00016712,2]
[359104855,1745709041973,-400.0,0.00016712,2]
[359104856,1745709041982,-400.0,0.00016712,2]
[359104858,1745709041991,-400.0,0.00016712,2]
[359104860,1745709042001,-444.01,0.00016712,2]
[359104862,1745709042010,-400.0,0.00016712,2]
[359104864,1745709042020,-400.0,0.00016712,2]
[359104866,1745709042029,-678.75,0.00016712,2]
[359104868,1745709042039,-503.1,0.00016712,2]
[359104870,1745709042048,-300.0,0.00016712,2]
[359104872,1745709042058,-400.0,0.00016712,2]
[359104874,1745709042068,-302.79024682,0.00016712,2]
[359104876,1745709042078,-400.0,0.00016712,2]
[359104878,1745709042088,-304.00831323,0.00016712,2]
[359104880,1745709042096,-400.0,0.00016712,2]
[359104882,1745709042106,-300.0,0.00016712,2]
[359104884,1745709042116,-306.33699423,0.00016712,2]
[359104886,1745709042125,-310.4,0.00016712,2]
[359104887,1745709042135,-592.99,0.00016712,2]
[359104889,1745709042145,-400.0,0.00016712,2]
[359104891,1745709042155,-304.33110585,0.00016712,2]
[359104893,1745709042164,-400.0,0.00016712,2]
[359104895,1745709042173,-400.0,0.00016712,2]
[359104897,1745709042183,-623.89,0.00016712,2]
[359104899,1745709042192,-400.0,0.00016712,2]
[359104900,1745709042202,-300.0,0.00016712,2]
[359104902,1745709042212,-431.54,0.00016712,2]
[359104904,1745709042222,-300.0,0.00016712,2]
[359104906,1745709042232,-759.69,0.00016712,2]
[359104908,1745709042242,-799.55,0.00016712,2]
[359104911,1745709042252,-2594.46841566,0.00016796,2]
[359104914,1745709042262,-367.45,0.00016986,2]
[359104916,1745709042272,-165.17,0.00016986,2]
[359104917,1745709042282,-400.0,0.00016986,2]
[359104919,1745709042293,-400.0,0.00016986,2]
[359104921,1745709042303,-400.0,0.00016986,2]
[359104923,1745709042313,-204.00668701,0.00016986,2]
[359104925,1745709042322,-200.0,0.00016986,2]
[359104927,1745709042332,-400.0,0.00016986,2]
[359104928,1745709042341,-400.0,0.00016986,2]
[359104930,1745709042351,-257.46,0.00016986,2]
[359104932,1745709042360,-400.0,0.00016986,2]
[359104934,1745709042370,-200.0,0.00016986,2]
[359104936,1745709042379,-400.0,0.00016986,2]
[359104938,1745709042389,-569.12,0.00016986,2]
[359104940,1745709042398,-400.0,0.00016986,2]
[359104942,1745709042408,-260.03,0.00016986,2]
[359104944,1745709042422,-400.0,0.00016986,2]
[359104945,1745709042431,-400.0,0.00016986,2]
[359104947,1745709042440,-400.0,0.00016986,2]
[359104949,1745709042450,-301.27,0.00016986,2]
[359104951,1745709042460,-400.0,0.00016986,2]
[359104953,1745709042469,-1294.84,0.00016986,2]
[359104955,1745709042479,-400.0,0.00016986,2]
[359104958,1745709042488,-753.12,0.00016986,2]
[359104960,1745709042497,-400.0,0.00016986,2]
[359104961,1745709042507,-400.0,0.00016986,2]
[359104963,1745709042518,-400.0,0.00016986,2]
[359104965,1745709042527,-1032.91,0.00016986,2]
[359104967,1745709042537,-400.0,0.00016986,2]
[359104969,1745709042547,-400.0,0.00016986,2]
[359104971,1745709042557,-400.0,0.00016986,2]
[359104973,1745709042567,-400.0,0.00016986,2]
[359104975,1745709042576,-432.19577925,0.00016986,2]
[359104976,1745709042586,-444.01,0.00016986,2]
[359104978,1745709042596,-400.0,0.00016986,2]
[359104980,1745709042605,-400.0,0.00016986,2]
[359104982,1745709042614,-678.75,0.00016986,2]
[359104984,1745709042623,-503.1,0.00016986,2]
[359104986,1745709042633,-400.0,0.00016986,2]
[359104988,1745709042643,-400.0,0.00016986,2]
[359104990,1745709042653,-400.0,0.00016986,2]
[359104992,1745709042662,-592.99,0.00016986,2]
[359104994,1745709042672,-400.0,0.00016986,2]
[359104995,1745709042681,-400.0,0.00016986,2]
[359104997,1745709042691,-623.89,0.00016986,2]
[359104999,1745709042700,-400.0,0.00016986,2]
[359105001,1745709042711,-431.54,0.00016986,2]
[359105003,1745709042720,-759.69,0.00016986,2]
[359105004,1745709042730,-799.55,0.00016986,2]
[359105006,1745709042740,-500.0,0.00017069,2]
[359105008,1745709042749,-8877.96385953,0.00017119,2]
[359105011,1745709042770,-3704.12907826,0.00017119,2]
[359105013,1745709042779,-160.0,0.00017119,2]
[359105015,1745709042789,-160.0,0.00017119,2]
[359105017,1745709042798,-160.0,0.00017119,2]
[359105019,1745709042808,-421.06755229,0.00017119,2]
[359105020,1745709042818,-160.0,0.00017119,2]
[359105022,1745709042827,-160.0,0.00017119,2]
[359105024,1745709042837,-160.0,0.00017119,2]
[359105026,1745709042847,-160.0,0.00017119,2]
[359105028,1745709042856,-295.95038132,0.00017119,2]
[359105030,1745709042868,-544.40200706,0.00017119,2]
[359105032,1745709042878,-500.0,0.00017131,2]
[359105034,1745709042887,-1498.00101737,0.00017242,2]
[359105036,1745709042897,-400.0,0.0001726,2]
[359105038,1745709042906,-400.0,0.0001726,2]
[359105039,1745709042916,-400.0,0.0001726,2]
[359105041,1745709042925,-400.0,0.0001726,2]
[359105043,1745709042935,-400.0,0.0001726,2]
[359105045,1745709042945,-400.0,0.0001726,2]
[359105047,1745709042954,-400.0,0.0001726,2]
[359105049,1745709042964,-85.55661604,0.0001726,2]
[359105051,1745709042976,-483.56338396,0.0001726,2]
[359105053,1745709042986,-400.0,0.0001726,2]
[359105055,1745709042996,-116.43661604,0.0001726,2]
[359105057,1745709043008,-283.56338396,0.0001726,2]
[359105059,1745709043017,-400.0,0.0001726,2]
[359105061,1745709043027,-400.0,0.0001726,2]
[359105062,1745709043036,-400.0,0.0001726,2]
[359105064,1745709043046,-1294.84,0.0001726,2]
[359105066,1745709043056,-753.12,0.0001726,2]
[359105068,1745709043066,-400.0,0.0001726,2]
[359105070,1745709043075,-400.0,0.0001726,2]
[359105072,1745709043085,-400.0,0.0001726,2]
[359105074,1745709043094,-1032.91,0.0001726,2]
[359105076,1745709043104,-400.0,0.0001726,2]
[359105077,1745709043113,-400.0,0.0001726,2]
[359105079,1745709043123,-400.0,0.0001726,2]
[359105081,1745709043132,-400.0,0.0001726,2]
[359105083,1745709043143,-444.01,0.0001726,2]
[359105085,1745709043152,-400.0,0.0001726,2]
[359105087,1745709043162,-400.0,0.0001726,2]
[359105089,1745709043171,-678.75,0.0001726,2]
[359105091,1745709043181,-503.1,0.0001726,2]
[359105093,1745709043190,-400.0,0.0001726,2]
[359105095,1745709043200,-400.0,0.0001726,2]
[359105097,1745709043209,-400.0,0.0001726,2]
[359105098,1745709043219,-592.99,0.0001726,2]
[359105100,1745709043229,-400.0,0.0001726,2]
[359105102,1745709043240,-400.0,0.0001726,2]
[359105104,1745709043250,-623.89,0.0001726,2]
[359105106,1745709043259,-400.0,0.0001726,2]
[359105108,1745709043269,-431.54,0.0001726,2]
[359105110,1745709043278,-759.69,0.0001726,2]
[359105112,1745709043288,-799.55,0.0001726,2]
[359105114,1745709043297,-1054.64404797,0.00017486,2]
[359105116,1745709043307,-400.0,0.00017534,2]
[359105118,1745709043316,-400.0,0.00017534,2]
[359105119,1745709043326,-400.0,0.00017534,2]
[359105121,1745709043335,-400.0,0.00017534,2]
[359105123,1745709043344,-400.0,0.00017534,2]
[359105125,1745709043354,-400.0,0.00017534,2]
[359105127,1745709043363,-400.0,0.00017534,2]
[359105129,1745709043373,-569.12,0.00017534,2]
[359105131,1745709043382,-400.0,0.00017534,2]
[359105133,1745709043392,-400.0,0.00017534,2]
[359105135,1745709043402,-427.99702037,0.00017534,2]
[359105137,1745709043414,-400.0,0.00017534,2]
[359105138,1745709043424,-400.0,0.00017534,2]
[359105140,1745709043433,-1294.84,0.00017534,2]
[359105142,1745709043443,-753.12,0.00017534,2]
[359105144,1745709043452,-400.0,0.00017534,2]
[359105146,1745709043464,-400.0,0.00017534,2]
[359105148,1745709043473,-400.0,0.00017534,2]
[359105150,1745709043484,-1032.91,0.00017534,2]
[359105152,1745709043494,-400.0,0.00017534,2]
[359105154,1745709043504,-400.0,0.00017534,2]
[359105156,1745709043514,-400.0,0.00017534,2]
[359105158,1745709043523,-400.0,0.00017534,2]
[359105160,1745709043534,-444.01,0.00017534,2]
[359105162,1745709043543,-400.0,0.00017534,2]
[359105164,1745709043553,-400.0,0.00017534,2]
[359105166,1745709043562,-678.75,0.00017534,2]
[359105167,1745709043572,-503.1,0.00017534,2]
[359105169,1745709043582,-400.0,0.00017534,2]
[359105171,1745709043591,-400.0,0.00017534,2]
[359105173,1745709043601,-400.0,0.00017534,2]
[359105175,1745709043611,-592.99,0.00017534,2]
[359105177,1745709043620,-470.69,0.00017534,2]
[359105179,1745709043630,-400.0,0.00017534,2]
[359105181,1745709043639,-623.89,0.00017534,2]
[359105198,1745709043802,-400.0,0.00017534,2]
[359105200,1745709043817,-431.54,0.00017534,2]
[359105202,1745709043827,-759.69,0.00017534,2]
[359105204,1745709043837,-799.55,0.00017534,2]
[359105206,1745709043846,-823.0,0.00017767,2]
[359105207,1745709043857,-400.0,0.00017808,2]
[359105209,1745709043866,-400.0,0.00017808,2]
[359105211,1745709043876,-400.0,0.00017808,2]
[359105213,1745709043885,-517.56,0.00017808,2]
[359105215,1745709043895,-400.0,0.00017808,2]
[359105217,1745709043906,-400.0,0.00017808,2]
[359105219,1745709043915,-400.0,0.00017808,2]
[359105221,1745709043925,-569.12,0.00017808,2]
[359105223,1745709043935,-400.0,0.00017808,2]
[359105225,1745709043944,-437.27,0.00017808,2]
[359105227,1745709043953,-400.0,0.00017808,2]
[359105229,1745709043964,-400.0,0.00017808,2]
[359105231,1745709043973,-1294.84,0.00017808,2]
[359105233,1745709043983,-753.12,0.00017808,2]
[359105234,1745709043992,-403.77242055,0.00017808,2]
[359105236,1745709044002,-400.0,0.00017808,2]
[359105238,1745709044012,-400.0,0.00017808,2]
[359105240,1745709044022,-1032.91,0.00017808,2]
[359105242,1745709044031,-400.0,0.00017808,2]
[359105244,1745709044041,-400.0,0.00017808,2]
[359105246,1745709044050,-400.0,0.00017808,2]
[359105248,1745709044059,-400.0,0.00017808,2]
[359105250,1745709044069,-444.01,0.00017808,2]
[359105252,1745709044078,-400.0,0.00017808,2]
[359105254,1745709044088,-400.0,0.00017808,2]
[359105256,1745709044097,-678.75,0.00017808,2]
[359105258,1745709044107,-503.1,0.00017808,2]
[359105260,1745709044116,-400.0,0.00017808,2]
[359105262,1745709044126,-400.0,0.00017808,2]
[359105263,1745709044135,-400.0,0.00017808,2]
[359105264,1745709044145,-592.99,0.00017808,2]
[359105266,1745709044154,-400.0,0.00017808,2]
[359105268,1745709044164,-623.89,0.00017808,2]
[359105270,1745709044174,-400.0,0.00017808,2]
[359105272,1745709044184,-431.54,0.00017808,2]
[359105274,1745709044194,-759.69,0.00017808,2]
[359105276,1745709044203,-799.55,0.00017808,2]
[359105278,1745709044214,-400.0,0.00018082,2]
[359105280,1745709044223,-400.0,0.00018082,2]
[359105281,1745709044233,-400.0,0.00018082,2]
[359105283,1745709044243,-400.0,0.00018082,2]
[359105285,1745709044253,-466.33,0.00018082,2]
[359105287,1745709044262,-400.0,0.00018082,2]
[359105289,1745709044272,-569.12,0.00018082,2]
[359105291,1745709044282,-400.0,0.00018082,2]
[359105293,1745709044291,-400.0,0.00018082,2]
[359105295,1745709044301,-400.0,0.00018082,2]
[359105297,1745709044310,-1294.84,0.00018082,2]
[359105298,1745709044320,-753.12,0.00018082,2]
[359105300,1745709044330,-400.0,0.00018082,2]
[359105302,1745709044339,-182.63,0.00018082,2]
[359105304,1745709044349,-1032.91,0.00018082,2]
[359105306,1745709044359,-400.0,0.00018082,2]
[359105308,1745709044369,-400.0,0.00018082,2]
[359105310,1745709044379,-299.11,0.00018082,2]
[359105312,1745709044389,-400.0,0.00018082,2]
[359105314,1745709044398,-444.01,0.00018082,2]
[359105316,1745709044408,-202.77,0.00018082,2]
[359105317,1745709044422,-400.0,0.00018082,2]
[359105319,1745709044431,-678.75,0.00018082,2]
[359105321,1745709044441,-503.1,0.00018082,2]
[359105322,1745709044450,-400.0,0.00018082,2]
[359105323,1745709044460,-400.0,0.00018082,2]
[359105324,1745709044470,-400.0,0.00018082,2]
[359105325,1745709044479,-592.99,0.00018082,2]
[359105326,1745709044489,-400.0,0.00018082,2]
[359105327,1745709044498,-623.89,0.00018082,2]
[359105328,1745709044508,-400.0,0.00018082,2]
[359105329,1745709044517,-431.54,0.00018082,2]
[359105330,1745709044527,-759.69,0.00018082,2]
[359105331,1745709044536,-799.55,0.00018082,2]
[359105332,1745709044546,-1054.64404797,0.00018348,2]
[359105333,1745709044555,-400.0,0.00018356,2]
[359105334,1745709044565,-400.0,0.00018356,2]
[359105335,1745709044574,-400.0,0.00018356,2]
[359105336,1745709044583,-400.0,0.00018356,2]
[359105337,1745709044593,-316.21377814,0.00018356,2]
[359105338,1745709044602,-569.12,0.00018356,2]
[359105339,1745709044612,-400.0,0.00018356,2]
[359105340,1745709044621,-400.0,0.00018356,2]
[359105341,1745709044630,-400.0,0.00018356,2]
[359105342,1745709044640,-1294.84,0.00018356,2]
[359105343,1745709044649,-753.12,0.00018356,2]
[359105344,1745709044658,-400.0,0.00018356,2]
[359105345,1745709044668,-1032.91,0.00018356,2]
[359105346,1745709044677,-400.0,0.00018356,2]
[359105347,1745709044687,-400.0,0.00018356,2]
[359105348,1745709044697,-400.0,0.00018356,2]
[359105349,1745709044706,-444.01,0.00018356,2]
[359105350,1745709044716,-400.0,0.00018356,2]
[359105351,1745709044725,-678.75,0.00018356,2]
[359105352,1745709044734,-503.1,0.00018356,2]
[359105354,1745709044744,-400.0,0.00018356,2]
[359105356,1745709044753,-400.0,0.00018356,2]
[359105358,1745709044762,-400.0,0.00018356,2]
[359105360,1745709044772,-592.99,0.00018356,2]
[359105362,1745709044782,-400.0,0.00018356,2]
[359105364,1745709044791,-623.89,0.00018356,2]
[359105366,1745709044800,-400.0,0.00018356,2]
[359105368,1745709044810,-431.54,0.00018356,2]
[359105370,1745709044819,-759.69,0.00018356,2]
[359105372,1745709044829,-799.55,0.00018356,2]
[359105374,1745709044838,-500.0,0.00018385,2]
[359105376,1745709044848,-173.57,0.00018518,2]
[359105378,1745709044858,-400.0,0.0001863,2]
[359105380,1745709044869,-400.0,0.0001863,2]
[359105382,1745709044878,-400.0,0.0001863,2]
[359105384,1745709044887,-569.12,0.0001863,2]
[359105386,1745709044897,-400.0,0.0001863,2]
[359105388,1745709044906,-400.0,0.0001863,2]
[359105390,1745709044916,-400.0,0.0001863,2]
[359105392,1745709044925,-1294.84,0.0001863,2]
[359105394,1745709044934,-753.12,0.0001863,2]
[359105396,1745709044943,-400.0,0.0001863,2]
[359105398,1745709044953,-1032.91,0.0001863,2]
[359105400,1745709044962,-400.0,0.0001863,2]
[359105402,1745709044972,-400.0,0.0001863,2]
[359105403,1745709044982,-400.0,0.0001863,2]
[359105405,1745709044991,-444.01,0.0001863,2]
[359105407,1745709045001,-345.80089674,0.0001863,2]
[359105409,1745709045010,-678.75,0.0001863,2]
[359105411,1745709045020,-503.1,0.0001863,2]
[359105413,1745709045029,-400.0,0.0001863,2]
[359105415,1745709045039,-400.0,0.0001863,2]
[359105417,1745709045048,-400.0,0.0001863,2]
[359105419,1745709045058,-592.99,0.0001863,2]
[359105421,1745709045067,-400.0,0.0001863,2]
[359105423,1745709045077,-331.35826199,0.0001863,2]
[359105438,1745709045214,-260.89137249,0.00016438,2]
[359105440,1745709045225,-292.53173801,0.0001863,2]
[359105443,1745709045235,-400.0,0.0001863,2]
[359105444,1745709045244,-431.54,0.0001863,2]
[359105447,1745709045254,-759.69,0.0001863,2]
[359105449,1745709045264,-799.55,0.0001863,2]
[359105451,1745709045274,-228.12,0.00018904,2]
[359105453,1745709045283,-400.0,0.00018904,2]
[359105455,1745709045292,-400.0,0.00018904,2]
[359105457,1745709045302,-569.12,0.00018904,2]
[359105459,1745709045311,-232.38878402,0.00018904,2]
[359105462,1745709045322,-167.61121598,0.00018904,2]
[359105464,1745709045332,-400.0,0.00018904,2]
[359105466,1745709045341,-400.0,0.00018904,2]
[359105468,1745709045351,-1294.84,0.00018904,2]
[359105470,1745709045361,-753.12,0.00018904,2]
[359105472,1745709045370,-400.0,0.00018904,2]
[359105474,1745709045379,-1032.91,0.00018904,2]
[359105475,1745709045389,-247.33115178,0.00018904,2]
[359105478,1745709045399,-400.0,0.00018904,2]
[359105480,1745709045410,-400.0,0.00018904,2]
[359105482,1745709045422,-444.01,0.00018904,2]
[359105484,1745709045431,-678.75,0.00018904,2]
[359105486,1745709045440,-503.1,0.00018904,2]
[359105488,1745709045450,-400.0,0.00018904,2]
[359105490,1745709045462,-400.0,0.00018904,2]
[359105492,1745709045472,-400.0,0.00018904,2]
[359105494,1745709045482,-592.99,0.00018904,2]
[359105496,1745709045491,-400.0,0.00018904,2]
[359105497,1745709045501,-623.89,0.00018904,2]
[359105499,1745709045510,-400.0,0.00018904,2]
[359105501,1745709045520,-431.54,0.00018904,2]
[359105504,1745709045530,-759.69,0.00018904,2]
[359105506,1745709045541,-799.55,0.00018904,2]
[359105508,1745709045551,-1000.0,0.00019152,2]
[359105510,1745709045560,-1000.0,0.00019152,2]
[359105512,1745709045569,-1000.0,0.00019152,2]
[359105514,1745709045579,-1000.0,0.00019152,2]
[359105516,1745709045588,-510.6188552,0.00019152,2]
[359105518,1745709045600,-489.3811448,0.00019152,2]
[359105520,1745709045610,-1000.0,0.00019152,2]
[359105522,1745709045620,-1000.0,0.00019152,2]
[359105524,1745709045629,-207.61885512,0.00019152,2]
[359105592,1745709047360,-0.04633232,0.00019152,2]
[359105604,1745709047464,-792.33481256,0.00019152,2]
[359105606,1745709047473,-500.0,0.00019152,2]
[359105608,1745709047483,-396.92976613,0.00019152,2]
[359105610,1745709047493,-397.58890821,0.00019178,2]
[359105612,1745709047505,-2.41109179,0.00019178,2]
[359105614,1745709047514,-400.0,0.00019178,2]
[359105616,1745709047523,-569.12,0.00019178,2]
[359105618,1745709047533,-400.0,0.00019178,2]
[359105620,1745709047542,-547.56,0.00019178,2]
[359105622,1745709047552,-1294.84,0.00019178,2]
[359105624,1745709047561,-753.12,0.00019178,2]
[359105626,1745709047570,-400.0,0.00019178,2]
[359105628,1745709047579,-1032.91,0.00019178,2]
[359105630,1745709047589,-400.0,0.00019178,2]
[359105632,1745709047598,-292.41284402,0.00019178,2]
[359105634,1745709047609,-107.58715598,0.00019178,2]
[359105636,1745709047618,-201.24118654,0.00019178,2]
[359105637,1745709047629,-242.76881346,0.00019178,2]
[359105638,1745709047639,-678.75,0.00019178,2]
[359105639,1745709047648,-503.1,0.00019178,2]
[359105640,1745709047657,-400.0,0.00019178,2]
[359105641,1745709047666,-400.0,0.00019178,2]
[359105642,1745709047676,-400.0,0.00019178,2]
[359105643,1745709047685,-592.99,0.00019178,2]
[359105644,1745709047694,-400.0,0.00019178,2]
[359105645,1745709047703,-64.52587232,0.00019178,2]
[359105646,1745709047748,-559.36412768,0.00019178,2]
[359105647,1745709047757,-232.50304444,0.00019178,2]
[359105648,1745709047769,-167.49695556,0.00019178,2]
[359105649,1745709047778,-363.47731874,0.00019178,2]
[359105650,1745709047793,-68.06268126,0.00019178,2]
[359105651,1745709047803,-759.69,0.00019178,2]
[359105652,1745709047813,-799.55,0.00019178,2]
[359105653,1745709047823,-978.7955063,0.00019178,2]
[359105654,1745709047831,-161.50536156,0.00019178,2]
[359105655,1745709047876,-138.49463844,0.00019178,2]
[359105656,1745709047886,-1054.64404797,0.0001921,2]
[359105657,1745709047896,-322.49016188,0.00019301,2]
[359105658,1745709047906,-400.0,0.00019452,2]
[359105659,1745709047915,-400.0,0.00019452,2]
[359105660,1745709047925,-569.12,0.00019452,2]
[359105661,1745709047934,-271.0556066,0.00019452,2]
[359105662,1745709047943,-1294.84,0.00019452,2]
[359105663,1745709047953,-753.12,0.00019452,2]
[359105664,1745709047962,-267.79689352,0.00019452,2]
[359105665,1745709047972,-1032.91,0.00019452,2]
[359105666,1745709047981,-496.53,0.00019452,2]
[359105667,1745709047991,-400.0,0.00019452,2]
[359105668,1745709048001,-444.01,0.00019452,2]
[359105669,1745709048010,-678.75,0.00019452,2]
[359105670,1745709048020,-503.1,0.00019452,2]
[359105671,1745709048029,-400.0,0.00019452,2]
[359105672,1745709048040,-400.0,0.00019452,2]
[359105673,1745709048049,-400.0,0.00019452,2]
[359105674,1745709048059,-592.99,0.00019452,2]
[359105675,1745709048069,-400.0,0.00019452,2]
[359105676,1745709048078,-623.89,0.00019452,2]
[359105677,1745709048088,-400.0,0.00019452,2]
[359105678,1745709048098,-431.54,0.00019452,2]
[359105679,1745709048107,-759.69,0.00019452,2]
[359105680,1745709048117,-799.55,0.00019452,2]
[359105681,1745709048127,-828.24361569,0.00019475,2]
[359105682,1745709048140,-323.75638431,0.00019475,2]
[359105683,1745709048150,-376.60361579,0.0001957,2]
[359105684,1745709048163,-26.39638421,0.0001957,2]
[359105685,1745709048172,-400.0,0.00019726,2]
[359105686,1745709048183,-400.0,0.00019726,2]
[359105687,1745709048193,-569.12,0.00019726,2]
[359105688,1745709048203,-1294.84,0.00019726,2]
[359105689,1745709048213,-753.12,0.00019726,2]
[359105690,1745709048223,-1032.91,0.00019726,2]
[359105691,1745709048233,-400.0,0.00019726,2]
[359105692,1745709048242,-444.01,0.00019726,2]
[359105693,1745709048253,-678.75,0.00019726,2]
[359105694,1745709048263,-503.1,0.00019726,2]
[359105695,1745709048273,-400.0,0.00019726,2]
[359105696,1745709048283,-400.0,0.00019726,2]
[359105697,1745709048294,-521.6,0.00019726,2]
[359105698,1745709048303,-592.99,0.00019726,2]
[359105699,1745709048313,-197.07597056,0.00019726,2]
[359105700,1745709048323,-623.89,0.00019726,2]
[359105701,1745709048333,-400.0,0.00019726,2]
[359105702,1745709048342,-431.54,0.00019726,2]
[359105703,1745709048352,-759.69,0.00019726,2]
[359105704,1745709048362,-799.55,0.00019726,2]
[359105705,1745709048371,-500.0,0.00019867,2]
[359105706,1745709048381,-500.0,0.00019867,2]
[359105707,1745709048391,-500.0,0.00019867,2]
[359105708,1745709048402,-1000.0,0.00019907,5]
[359105709,1745709048415,-400.0,0.0002,2]
[359105710,1745709048426,-400.0,0.0002,2]
[359105711,1745709048436,-569.12,0.0002,2]
[359105712,1745709048445,-1294.84,0.0002,2]
[359105713,1745709048455,-753.12,0.0002,2]
[359105714,1745709048465,-1032.91,0.0002,2]
[359105715,1745709048475,-400.0,0.0002,2]
[359105716,1745709048484,-444.01,0.0002,2]
[359105717,1745709048494,-678.75,0.0002,2]
[359105718,1745709048504,-503.1,0.0002,2]
[359105719,1745709048513,-400.0,0.0002,2]
[359105720,1745709048523,-400.0,0.0002,2]
[359105721,1745709048534,-592.99,0.0002,2]
[359105722,1745709048543,-623.89,0.0002,2]
[359105723,1745709048552,-2000.0,0.0002,4]
[359105724,1745709048563,-400.0,0.0002,2]
[359105725,1745709048572,-431.54,0.0002,2]
[359105726,1745709048581,-759.69,0.0002,2]
[359105727,1745709048592,-799.55,0.0002,2]
[359105728,1745709048602,-500.0,0.00020055,2]
[359105729,1745709048612,-1054.64404797,0.00020072,2]
[359105730,1745709048622,-400.0,0.00020273,2]
[359105731,1745709048631,-129.08120082,0.00020273,2]
[359105732,1745709048648,-270.91879918,0.00020273,2]
[359105733,1745709048657,-569.12,0.00020273,2]
[359105734,1745709048667,-25.52240405,0.00020273,2]
[359105754,1745710054130,-1517.57105719,0.00012579,2]
[359105756,1745710164087,-6646.29733758,0.000125,2]
[359105757,1745710164112,-26.0683124,0.00012579,2]
[359105758,1745710164139,-420.0,0.00012678,2]
[359105759,1745710164164,-300.0,0.00012678,2]